bitfinex/quotes_ETHUSD_20250603
["timestamp","ask_amount","ask_price","bid_price","bid_amount"]
[1748943342390,2.83236953,2612.4,2611.8,11.70487875]
[1748943342391,3.29929402,2612.4,2611.8,11.70487875]
[1748943342554,3.29929402,2612.4,2612.2,3.82817521]
[1748943342904,1.47435104,2612.4,2612.3,17.36583325]
[1748943343669,1.47435104,2612.4,2611.8,0.7865334]
[1748943343901,1.47435104,2612.4,2611.9,19.00276659]
[1748943344068,1.47435104,2612.4,2612.3,8.0]
[1748943344704,1.47435104,2612.4,2612.3,11.82804425]
[1748943346161,1.47435104,2612.4,2612.3,17.14019825]
[1748943346490,1.47435104,2612.4,2612.3,11.82804425]
[1748943347175,1.47435104,2612.4,2612.3,8.0]
[1748943347573,1.47435104,2612.4,2612.3,11.82804425]
[1748943349459,1.47435104,2612.4,2612.3,8.0]
[1748943349756,1.47435104,2612.4,2612.3,11.82804425]
[1748943352407,1.47435104,2612.4,2612.3,8.0]
[1748943352999,1.47435104,2612.4,2612.3,11.82804425]
[1748943354285,1.47435104,2612.4,2612.3,8.0]
[1748943354692,1.47435104,2612.4,2612.3,11.82804425]
[1748943357829,1.47435104,2612.4,2612.3,8.0]
[1748943358012,1.47435104,2612.4,2612.3,11.82804425]
[1748943360635,1.47435104,2612.4,2612.3,11.87134425]
[1748943360792,0.02,2612.9,2612.8,8.0]
[1748943360999,1.2011,2613.3,2613.2,3.82672585]
[1748943361224,5.2941,2613.3,2613.2,17.72629973]
[1748943361853,0.02,2613.9,2613.2,17.72629973]
[1748943361854,1.35525417,2613.6,2613.5,8.0]
[1748943362152,5.44625417,2613.6,2613.4,3.8263077]
[1748943362351,4.094,2613.5,2613.4,3.82643299]
[1748943362655,5.44825417,2613.6,2613.4,3.82643299]
[1748943362833,1.90007959,2613.6,2613.5,3.82628658]
[1748943363034,5.44725417,2613.6,2613.5,3.82628658]
[1748943363244,1.35525417,2613.6,2613.3,3.82657942]
[1748943363458,0.15415417,2613.6,2613.5,3.82628658]
[1748943363668,0.15415417,2613.6,2613.2,5.89957388]
[1748943363869,0.15415417,2613.6,2613.1,3.82685507]
[1748943364020,0.96116582,2613.6,2612.9,6.28367388]
[1748943364375,0.96116582,2613.6,2613.4,3.82637024]
[1748943364967,0.96116582,2613.6,2613.2,9.726269]
[1748943365111,0.96116582,2613.6,2613.4,3.82641936]
[1748943365927,0.96116582,2613.6,2613.2,9.72624487]
[1748943366319,0.96116582,2613.6,2613.4,3.82636407]
[1748943366519,0.50511658,2613.5,2613.4,3.82636407]
[1748943367325,0.50511658,2613.5,2613.4,6.98512531]
[1748943367625,0.15415417,2613.6,2613.4,3.15876124]
[1748943367836,4.081,2613.5,2613.4,3.15876124]
[1748943368154,4.081,2613.5,2613.4,6.98519423]
[1748943368344,4.23415417,2613.6,2613.5,3.82628658]
[1748943368855,0.15415417,2613.6,2613.5,3.82628658]
[1748943369050,4.23215417,2613.6,2613.5,3.82628658]
[1748943369255,0.15415417,2613.6,2613.5,14.98504782]
[1748943369474,0.15415417,2613.6,2613.5,18.83235382]
[1748943369613,0.15415417,2613.6,2613.5,14.98504782]
[1748943370126,0.15415417,2613.6,2613.5,17.18855782]
[1748943370331,0.02,2613.9,2613.8,6.98460866]
[1748943370735,0.02,2613.9,2613.8,3.15876124]
[1748943370935,0.02,2613.9,2613.6,3.15876124]
[1748943371138,0.02,2613.9,2613.6,6.98489423]
[1748943372225,0.02,2613.9,2613.7,3.8259915]
[1748943372621,0.02,2613.9,2613.6,6.98479958]
[1748943372841,0.02,2613.9,2613.6,3.15876124]
[1748943373040,0.02,2613.9,2613.5,8.0]
[1748943373243,4.08,2613.8,2613.6,8.0]
[1748943373451,4.49,2613.8,2613.6,11.82612125]
[1748943375069,4.072,2613.8,2613.7,3.8259938]
[1748943375259,4.072,2613.8,2613.6,6.98481827]
[1748943375440,4.072,2613.8,2613.6,8.0]
[1748943375627,4.072,2613.8,2613.1,3.82673275]
[1748943375628,5.2838,2613.8,2612.9,0.4546]
[1748943375826,5.2838,2613.8,2613.3,3.82643591]
[1748943376128,0.91295868,2613.7,2613.4,3.8263723]
[1748943376351,0.91295868,2613.7,2613.5,3.82624115]
[1748943376629,5.2838,2613.8,2613.6,11.82614018]
[1748943376829,5.2838,2613.8,2613.5,8.0]
[1748943377059,4.069,2613.7,2613.5,11.82625718]
[1748943377226,4.069,2613.6,2613.5,8.0]
[1748943377568,4.069,2613.6,2613.4,11.82635216]
[1748943377757,4.069,2613.6,2613.5,3.82628658]
[1748943377971,4.068,2613.6,2613.5,3.82628658]
[1748943378204,4.068,2613.6,2613.4,11.82633968]
[1748943378354,4.068,2613.6,2613.5,3.82628658]
[1748943379803,4.065,2613.6,2613.4,8.0]
[1748943380148,4.97526748,2613.6,2613.1,0.31946064]
[1748943380464,1.1363,2613.5,2613.1,0.31946064]
[1748943380678,3.82666768,2613.3,2613.1,0.31946064]
[1748943380876,4.067,2613.2,2613.1,0.31946064]
[1748943381211,1.1363,2613.5,2613.1,3.82687229]
[1748943381346,4.067,2613.4,2613.1,3.82687229]
[1748943381908,4.066,2613.3,2613.0,3.54111552]
[1748943382062,4.066,2613.3,2613.1,3.82682996]
[1748943382247,4.066,2613.3,2613.1,3.82686697]
[1748943382447,4.066,2613.3,2613.0,4.20931025]
[1748943382683,4.066,2613.3,2613.0,0.38235428]
[1748943382981,4.066,2613.3,2612.9,11.82715814]
[1748943383193,5.40113716,2613.3,2612.9,8.0]
[1748943383394,1.1512,2613.2,2612.7,11.82739299]
[1748943383596,1.1512,2613.2,2612.6,3.82751374]
[1748943383597,3.82693585,2613.1,2612.6,3.82751374]
[1748943383894,4.066,2613.0,2612.7,8.0]
[1748943384103,4.066,2613.0,2612.7,11.82744959]
[1748943384255,4.066,2613.0,2612.7,8.0]
[1748943384754,7.89303004,2613.0,2612.7,8.0]
[1748943385083,3.82718006,2612.9,2612.5,3.15876124]
[1748943385288,5.35309565,2613.0,2612.5,3.15876124]
[1748943385289,9.18018806,2613.0,2612.5,6.98643469]
[1748943385544,1.142,2612.6,2612.5,0.39124533]
[1748943385810,5.72294582,2612.6,2612.3,3.15876124]
[1748943385965,5.226,2612.6,2612.3,14.98673335]
[1748943386160,5.226,2612.6,2612.3,15.36593625]
[1748943386412,5.226,2612.6,2612.3,7.36593625]
[1748943386580,5.226,2612.6,2612.3,8.3792029]
[1748943386779,9.95905881,2612.6,2612.3,0.3792029]
[1748943386978,9.95905881,2612.6,2612.2,8.0]
[1748943387174,4.082,2612.5,2612.2,8.0]
[1748943388481,4.082,2612.5,2611.9,6.98732477]
[1748943388482,3.8279071,2612.4,2611.9,6.98732477]
[1748943388675,7.90981054,2612.5,2612.0,11.82847315]
[1748943388879,4.082,2612.4,2612.0,11.15876124]
[1748943389264,4.082,2612.4,2612.0,14.98723063]
[1748943389711,4.082,2612.4,2612.0,11.15876124]
[1748943389911,4.082,2612.4,2612.0,14.98719069]
[1748943390811,7.90990743,2612.4,2612.0,14.98719069]
[1748943391386,3.82826233,2612.2,2611.9,0.37824878]
[1748943391591,4.078,2612.1,2611.9,8.0]
[1748943391779,3.82877708,2611.8,2611.3,5.537789]
[1748943391977,4.085,2611.7,2611.3,5.92559724]
[1748943392176,4.085,2611.7,2611.3,0.38780824]
[1748943392399,7.91398836,2611.7,2611.4,3.15876124]
[1748943392916,4.083,2611.6,2611.4,6.98799874]
[1748943393092,4.083,2611.5,2611.4,14.98799874]
[1748943393293,1.1072,2611.9,2611.5,3.82920476]
[1748943393495,4.083,2611.8,2611.4,6.98804228]
[1748943393682,0.90535053,2612.6,2611.4,6.98804228]
[1748943393683,4.97513749,2612.2,2611.7,8.0]
[1748943394019,4.085,2612.1,2611.8,3.15876124]
[1748943394181,3.82841199,2612.1,2611.8,3.15876124]
[1748943394384,4.084,2612.0,2611.8,3.15876124]
[1748943394709,4.084,2612.0,2611.9,8.0]
[1748943394908,4.084,2612.0,2611.7,8.0]
[1748943395220,4.084,2612.0,2611.5,8.0]
[1748943395221,7.91175992,2611.9,2611.5,8.0]
[1748943395377,3.82878965,2611.8,2611.5,8.0]
[1748943395581,4.083,2611.9,2611.3,4.21596481]
[1748943395582,1.1793,2611.6,2611.3,8.38654639]
[1748943395828,4.083,2611.5,2611.3,8.38654639]
[1748943396523,4.083,2611.5,2611.3,12.2160502]
[1748943396709,4.083,2611.5,2611.3,8.38654639]
[1748943397075,4.083,2611.5,2611.3,12.21599447]
[1748943397279,4.083,2611.5,2611.4,3.15876124]
[1748943397781,4.37823508,2612.2,2611.4,3.15876124]
[1748943397782,1.1977,2612.5,2611.5,8.0]
[1748943397978,3.82833735,2612.1,2612.0,8.0]
[1748943398233,3.82813818,2612.3,2611.7,14.98766907]
[1748943398397,7.91419079,2612.2,2611.7,14.98766907]
[1748943398599,3.82835714,2612.1,2611.7,11.15876124]
[1748943398901,3.82834722,2612.1,2611.7,14.98759235]
[1748943399097,4.086,2612.2,2611.7,11.15876124]
[1748943399299,4.086,2612.2,2611.7,14.98767079]
[1748943399817,3.82834271,2612.1,2611.7,11.15876124]
[1748943400337,3.82834271,2612.1,2611.7,14.98766757]
[1748943400829,3.82834271,2612.1,2611.7,11.15876124]
[1748943401532,3.82834271,2612.1,2611.7,8.0]
[1748943401736,4.99478392,2612.0,2611.6,8.0]
[1748943401913,4.083,2611.9,2611.6,11.82905929]
[1748943402088,4.083,2611.9,2611.5,8.0]
[1748943402285,4.083,2611.9,2611.3,3.54530763]
[1748943402286,1.1737,2611.7,2611.1,0.02]
[1748943402492,4.95755686,2611.2,2611.1,0.02]
[1748943402822,9.96368798,2611.2,2611.1,0.02]
[1748943403023,9.92526491,2611.2,2611.1,0.02]
[1748943403181,5.83626491,2611.2,2611.1,0.02]
[1748943403387,5.2159,2611.2,2611.1,0.02]
[1748943403697,4.088,2611.2,2611.1,7.00853926]
[1748943403897,4.09,2611.2,2611.1,3.17876124]
[1748943404327,4.09,2611.2,2611.1,3.56103768]
[1748943404531,4.09,2611.2,2611.1,0.40227644]
[1748943408406,4.09,2611.2,2611.1,0.02]
[1748943408894,4.079,2611.2,2611.1,0.02]
[1748943409096,7.90865686,2611.2,2611.1,0.02]
[1748943409305,4.079,2611.2,2611.1,0.02]
[1748943410928,1.196,2611.3,2611.1,0.02]
[1748943411104,5.01013723,2611.6,2611.2,8.0]
[1748943411304,4.08,2611.5,2611.2,8.0]
[1748943411509,3.82937656,2611.4,2611.1,8.02]
[1748943411710,4.08,2611.3,2611.1,0.40212855]
[1748943411923,4.08,2611.3,2611.1,0.02]
[1748943412833,3.82939136,2611.4,2611.1,0.02]
[1748943412998,4.077,2611.2,2611.1,0.02]
[1748943414234,10.29545568,2611.2,2611.1,0.02]
[1748943414430,2.38879882,2611.2,2611.1,0.02]
[1748943414628,2.38879882,2611.2,2611.1,0.40501266]
[1748943414629,4.075,2611.2,2611.1,0.40501266]
[1748943414795,4.074,2611.2,2611.1,0.02]
[1748943416039,3.82907111,2611.6,2611.2,13.82957008]
[1748943416334,1.1641,2611.8,2611.2,13.82957008]
[1748943416335,4.074,2611.5,2611.2,11.82957264]
[1748943416526,4.074,2611.5,2611.2,11.82954782]
[1748943416723,3.8289836,2611.7,2611.3,3.82950946]
[1748943416923,3.82865199,2611.9,2611.4,3.82922151]
[1748943417124,4.074,2611.7,2611.4,3.82936355]
[1748943417450,4.074,2611.7,2611.6,8.0]
[1748943418141,4.074,2611.7,2611.5,8.0]
[1748943418845,4.074,2611.7,2611.4,8.0]
[1748943419040,7.90292434,2611.7,2611.4,8.0]
[1748943419429,7.90292434,2611.7,2611.2,8.0]
[1748943419838,7.90292434,2611.7,2611.4,8.0]
[1748943420143,7.90292434,2611.7,2611.2,11.82952791]
[1748943420341,3.8288851,2611.8,2611.4,8.0]
[1748943420541,7.89606069,2611.7,2611.2,8.0]
[1748943420840,7.89606069,2611.7,2611.3,8.0]
[1748943422006,7.89606069,2611.7,2611.3,5.506319]
[1748943422206,7.89606069,2611.7,2611.4,10.0]
[1748943422411,4.067,2611.7,2611.3,5.506319]
[1748943422647,3.82908294,2611.6,2611.4,10.0]
[1748943422830,3.82908294,2611.6,2611.3,5.506319]
[1748943423004,7.89599724,2611.7,2611.4,10.0]
[1748943423203,4.067,2611.7,2611.4,10.0]
[1748943423410,3.8290726,2611.6,2611.4,10.0]
[1748943423720,7.89598511,2611.7,2611.4,10.0]
[1748943423939,7.89598511,2611.7,2611.3,4.859319]
[1748943424124,7.89598511,2611.7,2611.4,10.0]
[1748943424318,3.82913056,2611.6,2611.3,4.859319]
[1748943424528,4.95357953,2611.5,2611.1,0.40309983]
[1748943424720,7.88949748,2611.4,2611.1,0.40309983]
[1748943425119,3.82957272,2611.3,2611.1,0.40309983]
[1748943425408,7.88949748,2611.4,2611.1,0.40309983]
[1748943425409,7.88947067,2611.4,2611.1,3.30338665]
[1748943425620,3.82965686,2611.2,2611.1,0.40309983]
[1748943426249,3.82956786,2611.3,2611.1,0.40309983]
[1748943428363,3.82957602,2611.3,2611.1,0.40309983]
[1748943428833,3.82965686,2611.2,2611.1,0.40309983]
[1748943429036,3.82959253,2611.3,2611.1,0.40309983]
[1748943429832,3.82962247,2611.3,2611.1,0.40309983]
[1748943431335,7.88943464,2611.4,2611.1,0.40309983]
[1748943431561,4.05,2611.3,2611.2,8.0]
[1748943432465,3.82943464,2611.4,2611.2,8.0]
[1748943432671,3.35827192,2612.7,2611.4,8.0]
[1748943432841,4.9005096,2611.9,2611.7,8.0]
[1748943433040,4.049,2611.8,2611.7,8.0]
[1748943433363,7.87777708,2611.8,2611.7,8.0]
[1748943433735,7.87777708,2611.8,2611.4,10.90028682]
[1748943434059,3.82877708,2611.8,2611.4,10.90028682]
[1748943434269,4.048,2611.7,2611.4,10.90028682]
[1748943434431,7.87693298,2611.7,2611.4,10.90028682]
[1748943434883,3.82907737,2611.6,2611.3,8.0]
[1748943435076,4.048,2611.5,2611.3,8.0]
[1748943437646,3.82899513,2611.7,2611.3,8.0]
[1748943437845,4.041,2611.6,2611.3,8.0]
[1748943438945,9.03997908,2611.6,2611.1,0.40309983]
[1748943439146,4.91526202,2611.5,2611.1,0.40309983]
[1748943439353,4.039,2611.4,2611.2,8.0]
[1748943439874,7.86848204,2611.4,2611.2,8.0]
[1748943440969,4.039,2611.4,2611.2,8.0]
[1748943441949,7.86838524,2611.4,2611.2,8.0]
[1748943442344,3.8295102,2611.3,2611.1,0.40309983]
[1748943442569,4.036,2611.2,2611.1,0.40309983]
[1748943443432,7.86565686,2611.2,2611.1,0.40309983]
[1748943444251,8.91875686,2611.2,2611.1,0.02]
[1748943445376,8.92875686,2611.2,2611.1,0.02]
[1748943445686,10.31518513,2611.2,2611.1,0.02]
[1748943445976,6.26818513,2611.2,2611.1,0.02]
[1748943446180,10.31418513,2611.2,2611.1,0.02]
[1748943446646,10.31318513,2611.2,2611.1,0.02]
[1748943446853,6.26818513,2611.2,2611.1,0.02]
[1748943447050,10.31318513,2611.2,2611.1,0.02]
[1748943447978,9.76218513,2611.2,2611.1,0.02]
[1748943448176,3.83054069,2610.6,2610.1,6.3615515]
[1748943448349,7.87269343,2610.5,2610.2,10.0]
[1748943448552,4.043,2610.4,2610.3,2.90028682]
[1748943449755,4.043,2610.4,2610.3,3.29220439]
[1748943450276,4.043,2610.4,2610.3,11.29220439]
[1748943450580,4.043,2610.4,2610.3,15.12318167]
[1748943450937,1.0909,2610.7,2610.3,15.12318167]
[1748943451140,4.039,2610.6,2610.3,15.12318167]
[1748943451340,4.039,2610.6,2610.4,8.0]
[1748943451580,3.83032767,2610.8,2610.5,2.90028682]
[1748943451736,1.1244,2610.9,2610.5,2.90028682]
[1748943451737,4.039,2610.7,2610.5,2.90028682]
[1748943453591,0.02,2611.9,2610.6,8.0]
[1748943453759,3.82886744,2611.8,2611.4,2.90028682]
[1748943453958,4.051,2611.7,2611.4,6.72955831]
[1748943454147,4.051,2611.7,2611.4,6.72964024]
[1748943454488,4.051,2611.7,2611.5,3.82921004]
[1748943454671,4.051,2611.7,2611.4,6.72953751]
[1748943454856,4.051,2611.7,2611.4,6.72955641]
[1748943455187,4.048,2611.6,2611.4,3.82926959]
[1748943455581,4.048,2611.5,2611.4,11.82926959]
[1748943455785,4.048,2611.5,2611.4,8.0]
[1748943458686,3.82893845,2611.7,2611.4,8.0]
[1748943458867,5.66912765,2611.8,2611.4,8.0]
[1748943458868,4.041,2611.5,2611.4,8.0]
[1748943459755,7.87021692,2611.5,2611.4,8.0]
[1748943459952,4.041,2611.5,2611.4,8.0]
[1748943462994,3.82958406,2611.3,2610.8,3.83017931]
[1748943463161,3.82958406,2611.3,2610.9,8.0]
[1748943463162,4.90669527,2611.2,2610.9,8.0]
[1748943463362,4.90669527,2611.2,2610.8,3.83017931]
[1748943463562,4.90669527,2611.2,2610.9,8.0]
[1748943464258,3.82991039,2611.1,2610.6,11.83045326]
[1748943464461,4.035,2611.0,2610.6,3.83045326]
[1748943464674,4.035,2611.0,2610.6,13.83045326]
[1748943464869,4.035,2611.0,2610.8,3.83020045]
[1748943465077,4.035,2611.0,2610.8,13.83020045]
[1748943466001,4.035,2611.0,2610.6,8.30336114]
[1748943466202,4.035,2611.0,2610.8,3.83018406]
[1748943466499,4.035,2611.0,2610.8,3.83021003]
[1748943466803,1.1498,2610.9,2610.5,18.0]
[1748943467102,4.031,2610.8,2610.5,3.83060283]
[1748943468210,0.64608462,2611.1,2610.4,8.0]
[1748943468385,4.029,2611.0,2610.7,3.83030376]
[1748943468705,4.029,2611.0,2610.6,3.83048644]
[1748943468891,3.8298347,2611.1,2610.6,3.83048644]
[1748943469309,7.85795021,2611.0,2610.6,10.0]
[1748943469805,4.027,2610.9,2610.6,13.83052517]
[1748943469975,4.027,2610.9,2610.6,3.83052517]
[1748943470179,3.82995021,2611.0,2610.6,3.83052517]
[1748943470386,4.026,2610.9,2610.6,10.0]
[1748943470706,4.026,2610.8,2610.6,3.83052418]
[1748943471910,4.026,2610.8,2610.6,3.83053075]
[1748943472692,4.026,2610.8,2610.7,3.83039031]
[1748943472904,0.87136747,2611.0,2610.6,3.83045302]
[1748943473080,4.023,2610.9,2610.6,3.83045302]
[1748943473676,4.023,2610.9,2610.7,3.83035717]
[1748943473882,4.022,2610.8,2610.6,3.83044964]
[1748943474078,4.022,2610.7,2610.6,3.83044964]
[1748943474483,4.021,2610.7,2610.6,3.83044964]
[1748943476237,3.83000041,2611.0,2610.6,3.83044964]
[1748943476440,4.018,2610.9,2610.6,3.83044964]
[1748943476744,4.018,2610.9,2610.5,13.83060904]
[1748943477138,7.84810751,2610.9,2610.5,13.83060904]
[1748943477280,3.8302436,2610.8,2610.5,8.0]
[1748943477486,1.88182436,2610.7,2610.3,8.39191757]
[1748943477794,4.016,2610.6,2610.3,8.39191757]
[1748943478037,4.016,2610.6,2610.3,12.22287588]
[1748943478341,4.016,2610.6,2610.4,2.90134481]
[1748943482304,4.016,2610.6,2610.3,10.49517487]
[1748943482510,4.016,2610.6,2610.4,12.90134481]
[1748943483402,4.016,2610.6,2610.4,2.90134481]
[1748943483708,4.016,2610.6,2610.4,12.90134481]
[1748943483904,4.016,2610.6,2610.4,2.90134481]
[1748943484341,4.016,2610.6,2610.4,12.90134481]
[1748943487052,4.003,2610.5,2610.4,6.73216651]
[1748943487215,1.097,2610.7,2610.4,6.73211219]
[1748943487416,4.003,2610.6,2610.4,6.73211219]
[1748943487621,4.003,2610.6,2610.4,16.73211219]
[1748943487823,4.003,2610.6,2610.4,12.90134481]
[1748943488151,4.002,2610.5,2610.4,12.90134481]
[1748943488452,3.83025128,2610.8,2610.4,12.90134481]
[1748943488654,4.001,2610.7,2610.4,12.90134481]
[1748943489661,7.83141091,2610.7,2610.4,12.90134481]
[1748943490569,4.001,2610.7,2610.4,12.90134481]
[1748943491065,4.001,2610.7,2610.4,16.7321541]
[1748943491359,4.001,2610.7,2610.4,12.90134481]
[1748943491667,0.87137219,2611.0,2610.6,6.7318157]
[1748943491869,7.82911074,2610.9,2610.6,2.90134481]
[1748943492721,3.83041656,2610.7,2610.4,0.60704357]
[1748943493056,3.998,2610.6,2610.4,10.0]
[1748943494981,3.83083052,2610.4,2610.3,0.99616098]
[1748943495184,3.995,2610.4,2610.3,0.38911741]
[1748943495483,3.995,2610.4,2610.2,10.60704357]
[1748943496182,3.995,2610.4,2610.2,10.0]
[1748943497252,3.995,2610.4,2610.2,3.83106265]
[1748943497564,3.995,2610.4,2610.2,13.83106265]
[1748943497762,3.995,2610.4,2610.2,10.0]
[1748943498176,3.995,2610.4,2610.3,2.90134481]
[1748943498347,4.89490195,2610.8,2610.3,2.90134481]
[1748943498348,1.0646,2610.8,2610.3,2.90134481]
[1748943498682,3.991,2610.7,2610.5,2.90134481]
[1748943499041,4.89484935,2610.8,2610.5,2.90134481]
[1748943499243,4.96656848,2611.0,2610.7,2.90134481]
[1748943499473,3.99,2610.9,2610.7,2.90134481]
[1748943499778,7.8201063,2610.9,2610.7,2.90134481]
[1748943500197,1.1366,2611.0,2610.7,2.90134481]
[1748943500343,3.99,2610.9,2610.7,2.90134481]
[1748943500548,3.989,2610.8,2610.7,2.90134481]
[1748943500792,3.82995214,2611.0,2610.7,2.90134481]
[1748943501099,3.989,2610.8,2610.7,2.90134481]
[1748943501594,0.76596468,2611.0,2610.7,2.90134481]
[1748943501799,3.988,2610.8,2610.7,2.90134481]
[1748943502009,3.988,2610.8,2610.7,6.73172486]
[1748943502288,3.987,2610.8,2610.7,6.73166309]
[1748943502469,3.82973322,2611.2,2610.7,6.73166309]
[1748943502787,3.987,2611.1,2611.0,3.82990936]
[1748943503111,3.987,2611.1,2610.9,6.73135846]
[1748943504687,3.82951846,2611.3,2610.9,6.73135846]
[1748943504892,3.985,2611.2,2610.9,6.73138246]
[1748943505584,3.985,2611.2,2610.9,2.90134481]
[1748943506097,7.81467474,2611.2,2610.9,2.90134481]
[1748943506391,3.985,2611.2,2610.9,2.90134481]
[1748943506686,3.985,2611.2,2610.9,6.73142643]
[1748943507070,3.985,2611.2,2610.9,2.90134481]
[1748943507266,3.985,2611.2,2610.8,2.90134481]
[1748943507468,3.82986706,2611.1,2610.8,2.90134481]
[1748943507793,8.32841141,2611.2,2610.8,2.90134481]
[1748943508093,8.32841141,2611.2,2610.8,12.90134481]
[1748943510001,3.82980525,2611.1,2610.8,2.90134481]
[1748943511710,3.82958444,2611.3,2611.0,2.90134481]
[1748943511920,3.977,2611.2,2611.0,2.90134481]
[1748943512079,7.80667679,2611.2,2610.8,12.90134481]
[1748943512815,3.8298094,2611.1,2610.8,12.90134481]
[1748943513129,3.8298094,2611.1,2610.8,2.90134481]
[1748943513312,5.08161439,2611.1,2610.7,10.0]
[1748943513500,3.83016945,2610.9,2610.6,8.0]
[1748943513703,1.25174652,2611.1,2610.7,19.36817931]
[1748943513884,3.974,2611.0,2610.8,2.90134481]
[1748943514085,3.974,2610.9,2610.8,12.90134481]
[1748943514284,3.974,2610.9,2610.8,16.73158841]
[1748943514589,3.82968244,2611.2,2610.8,6.73158841]
[1748943514786,3.82968244,2611.2,2610.8,2.90134481]
[1748943514787,3.973,2611.1,2610.8,2.90134481]
[1748943514985,3.973,2611.0,2610.8,12.90134481]
[1748943515186,5.81434238,2611.3,2610.8,6.73156795]
[1748943515395,0.96437563,2611.2,2611.0,3.82980565]
[1748943515600,4.88260095,2611.5,2611.1,2.90134481]
[1748943515813,3.973,2611.4,2611.1,2.90134481]
[1748943516117,7.80239908,2611.4,2611.1,2.90134481]
[1748943517609,3.973,2611.4,2611.1,2.90134481]
[1748943517806,7.80238826,2611.4,2611.1,2.90134481]
[1748943518139,3.82938826,2611.4,2611.1,2.90134481]
[1748943518320,3.97,2611.3,2611.1,2.90134481]
[1748943519039,3.969,2611.2,2611.1,2.90134481]
[1748943520673,3.969,2611.2,2610.9,2.90134481]
[1748943520936,0.02,2611.9,2611.2,13.82965686]
[1748943521140,3.82905533,2611.7,2611.2,3.82965686]
[1748943521445,7.79514013,2611.6,2611.2,3.82965686]
[1748943522114,3.965,2611.5,2611.3,3.82949881]
[1748943522318,3.965,2611.4,2611.3,3.82949881]
[1748943522499,3.965,2611.4,2611.3,3.82942172]
[1748943522700,3.965,2611.4,2611.3,13.82942172]
[1748943522940,3.965,2611.4,2611.3,3.82942172]
[1748943523933,3.963,2611.4,2611.3,2.90134481]
[1748943524134,3.963,2611.4,2611.3,6.73085501]
[1748943524446,3.963,2611.4,2611.2,8.0]
[1748943525245,3.963,2611.4,2611.2,11.82965582]
[1748943526203,3.963,2611.4,2611.2,8.0]
[1748943526543,3.963,2611.4,2611.2,11.82964072]
[1748943527211,3.963,2611.4,2611.2,8.0]
[1748943527525,1.0934,2611.8,2611.3,3.82936547]
[1748943527717,3.959,2611.7,2611.4,8.0]
[1748943527901,3.959,2611.7,2611.4,11.82927261]
[1748943528318,7.78792783,2611.7,2611.3,3.82942797]
[1748943528568,7.78798999,2611.7,2611.3,3.82942797]
[1748943528764,3.959,2611.7,2611.3,3.82942797]
[1748943529069,0.94356603,2611.6,2611.3,8.0]
[1748943529423,0.94356603,2611.6,2611.4,8.0]
[1748943529623,0.94356603,2611.6,2611.5,8.0]
[1748943530677,0.94356603,2611.6,2611.4,8.0]
[1748943531164,3.84869726,2611.9,2611.5,3.82921692]
[1748943531340,3.956,2611.8,2611.5,3.82921692]
[1748943532069,7.78480833,2611.8,2611.4,3.82935128]
[1748943532270,1.0494,2611.7,2611.2,8.0]
[1748943532772,1.0494,2611.7,2611.2,11.82953572]
[1748943532773,4.87836746,2611.7,2611.2,11.82953572]
[1748943532935,2.31770531,2611.7,2611.3,3.82942001]
[1748943533351,0.02,2611.9,2611.5,3.82907268]
[1748943533558,3.954,2611.8,2611.6,8.0]
[1748943536825,0.02,2611.9,2611.6,11.8290542]
[1748943537029,3.95,2611.7,2611.6,11.8290542]
[1748943537860,3.95,2611.7,2611.6,12.22024793]
[1748943538564,3.95,2611.7,2611.6,8.39119373]
[1748943539062,3.95,2611.7,2611.6,12.22026403]
[1748943539660,3.95,2611.7,2611.6,8.39119373]
[1748943539846,4.40860519,2611.7,2611.6,0.39119373]
[1748943540348,4.40860519,2611.7,2611.4,3.82935259]
[1748943540557,1.1103,2611.6,2611.3,8.0]
[1748943540753,1.1103,2611.6,2611.3,11.82942978]
[1748943541472,1.1103,2611.6,2611.2,11.82956916]
[1748943541675,2.42797208,2611.6,2611.2,11.82956916]
[1748943541853,2.42797208,2611.6,2611.3,3.82950759]
[1748943542172,2.42797208,2611.6,2611.2,11.82958988]
[1748943542550,3.945,2611.5,2611.3,3.82941339]
[1748943542756,3.945,2611.5,2611.2,8.0]
[1748943543084,3.945,2611.5,2611.3,3.82950387]
[1748943544939,3.946,2611.4,2611.2,8.0]
[1748943545157,3.946,2611.3,2611.2,16.34963067]
[1748943545491,3.946,2611.3,2611.2,14.70465467]
[1748943546045,4.95138137,2611.8,2611.3,3.82943593]
[1748943546243,4.82500653,2611.7,2611.3,3.82943593]
[1748943546445,1.1225,2611.8,2611.5,8.0]
[1748943546803,3.946,2611.7,2611.5,3.82921662]
[1748943547071,3.946,2611.7,2611.5,11.82921662]
[1748943547425,3.946,2611.7,2611.5,8.0]
[1748943548427,1.1225,2611.8,2611.6,8.0]
[1748943548613,0.02,2611.9,2611.8,21.82877708]
[1748943548810,3.8278325,2612.5,2612.2,8.0]
[1748943548811,1.0543,2612.5,2612.2,8.0]
[1748943548982,3.949,2612.4,2612.2,8.0]
[1748943549183,3.949,2612.4,2612.2,3.82818484]
[1748943549416,3.949,2612.3,2612.2,3.82818484]
[1748943549600,3.949,2612.3,2612.1,6.43194624]
[1748943549928,3.949,2612.3,2612.1,2.97813579]
[1748943550133,3.949,2612.3,2612.1,6.80639368]
[1748943550288,1.0543,2612.5,2612.2,3.82818329]
[1748943550488,3.948,2612.4,2612.1,6.80636524]
[1748943552823,3.948,2612.4,2612.1,2.97813579]
[1748943553314,3.948,2612.4,2612.1,12.97813579]
[1748943554423,3.948,2612.4,2612.1,2.97813579]
[1748943554625,3.948,2612.4,2612.0,2.90134481]
[1748943554920,1.0543,2612.5,2612.0,6.72970826]
[1748943555221,3.943,2612.4,2612.1,3.82833438]
[1748943555436,3.943,2612.4,2612.0,2.90134481]